[Event "Live Chess"]
[Site "Chess.com"]
[Date "2024.06.01"]
[Round "-"]
[White "vincents82"]
[Black "BishopofWells"]
[Result "1-0"]
[WhiteElo "2094"]
[BlackElo "1538"]
[TimeControl "300"]
[EndTime "14:41:24 PDT"]
[Termination "vincents82 won by resignation"]

1. e4 {[%clk 0:04:52.4]} 1... e6 {[%clk 0:04:58.4]} 2. d4 {[%clk 0:04:45.4]}
2... d5 {[%clk 0:04:57.1]} 3. Nd2 {[%clk 0:04:44.6]} 3... Nf6 {[%clk 0:04:53.2]}
4. e5 {[%clk 0:04:41.8]} 4... Nfd7 {[%clk 0:04:51.9]} 5. Bd3 {[%clk 0:04:41.5]}
5... c5 {[%clk 0:04:50.9]} 6. c3 {[%clk 0:04:41.3]} 6... cxd4 {[%clk 0:04:49.3]}
7. cxd4 {[%clk 0:04:39.4]} 7... Qb6 {[%clk 0:04:48.9]} 8. Ne2 {[%clk 0:04:37.8]}
8... Nc6 {[%clk 0:04:46.6]} 9. Nf3 {[%clk 0:04:36.7]} 9... Bb4+ {[%clk
0:04:44.3]} 10. Bd2 {[%clk 0:04:35.4]} 10... O-O {[%clk 0:04:36.1]} 11. a3
{[%clk 0:04:27.2]} 11... Bxd2+ {[%clk 0:04:33.8]} 12. Qxd2 {[%clk 0:04:26.9]}
12... h6 {[%clk 0:04:33]} 13. O-O {[%clk 0:04:25]} 13... Qd8 {[%clk 0:04:15.9]}
14. Rac1 {[%clk 0:04:22.1]} 14... Nb6 {[%clk 0:04:02.9]} 15. Bb1 {[%clk
0:04:09.4]} 15... Ne7 {[%clk 0:03:56.8]} 16. Qd3 {[%clk 0:04:06.4]} 16... Ng6
{[%clk 0:03:54.2]} 17. h4 {[%clk 0:04:03.4]} 17... f5 {[%clk 0:03:48.7]} 18.
exf6 {[%clk 0:04:00.7]} 18... Rxf6 {[%clk 0:03:47.6]} 19. h5 {[%clk 0:03:58.3]}
19... Ne7 {[%clk 0:03:30.5]} 20. Qh7+ {[%clk 0:03:53.2]} 20... Kf7 {[%clk
0:03:29.7]} 21. Ne5+ {[%clk 0:03:52.2]} 21... Kf8 {[%clk 0:03:22]} 22. Qh8+
{[%clk 0:03:51]} 22... Ng8 {[%clk 0:03:20.5]} 23. Bh7 {[%clk 0:03:44.4]} 23...
Ke7 {[%clk 0:03:06.6]} 24. Qxg8 {[%clk 0:03:42.8]} 24... Qxg8 {[%clk 0:03:00.3]}
25. Bxg8 {[%clk 0:03:40.7]} 25... Bd7 {[%clk 0:02:59.3]} 26. Nxd7 {[%clk
0:03:39.2]} 26... Kxd7 {[%clk 0:02:54.3]} 27. Bh7 {[%clk 0:03:36.6]} 27... Nc4
{[%clk 0:02:51.2]} 28. Rc2 {[%clk 0:03:31.4]} 28... Raf8 {[%clk 0:02:38.9]} 29.
Bd3 {[%clk 0:03:24.4]} 29... Ne3 {[%clk 0:02:31.9]} 30. Ng3 {[%clk 0:03:17.3]}
30... Nxc2 {[%clk 0:02:24.6]} 31. Bxc2 {[%clk 0:03:16.2]} 31... Rf4 {[%clk
0:02:20.1]} 32. Ne2 {[%clk 0:03:07.3]} 32... Rh4 {[%clk 0:02:18.8]} 33. g3
{[%clk 0:03:06.4]} 33... Rxh5 {[%clk 0:02:15.6]} 34. Nf4 {[%clk 0:03:02.5]}
34... Rg5 {[%clk 0:02:11.6]} 35. Kh2 {[%clk 0:03:01.3]} 35... Kd6 {[%clk
0:01:58.9]} 36. Nd3 {[%clk 0:02:57.5]} 36... Rgf5 {[%clk 0:01:45.3]} 37. Kg2
{[%clk 0:02:55.5]} 37... h5 {[%clk 0:01:41.4]} 38. f4 {[%clk 0:02:44.3]} 38...
R8f6 {[%clk 0:01:36.7]} 39. Ne5 {[%clk 0:02:35.2]} 39... Rf8 {[%clk 0:01:32.6]}
40. Bxf5 {[%clk 0:02:33.7]} 40... Rxf5 {[%clk 0:01:25.9]} 41. Kf3 {[%clk
0:02:24]} 41... Rf8 {[%clk 0:01:21.3]} 42. Rc1 {[%clk 0:02:22.2]} 42... g5
{[%clk 0:01:17.4]} 43. Rc3 {[%clk 0:02:07.8]} 43... h4 {[%clk 0:01:09.7]} 44.
Nd3 {[%clk 0:02:02.3]} 44... h3 {[%clk 0:01:01]} 45. Rc2 {[%clk 0:01:58.9]}
45... Rh8 {[%clk 0:00:52.2]} 46. fxg5 {[%clk 0:01:52.4]} 46... h2 {[%clk
0:00:48.8]} 47. Nf2 {[%clk 0:01:51.3]} 47... h1=Q+ {[%clk 0:00:47]} 48. Nxh1
{[%clk 0:01:50.3]} 48... Rxh1 {[%clk 0:00:45.6]} 49. Kg4 {[%clk 0:01:46.7]}
49... Rh8 {[%clk 0:00:42.4]} 50. g6 {[%clk 0:01:45.8]} 50... Rg8 {[%clk
0:00:40.4]} 51. Kg5 {[%clk 0:01:45.1]} 51... e5 {[%clk 0:00:34.3]} 52. dxe5+
{[%clk 0:01:41.9]} 52... Kxe5 {[%clk 0:00:32.8]} 53. Re2+ {[%clk 0:01:40.1]}
53... Kd6 {[%clk 0:00:31.8]} 54. Kf6 {[%clk 0:01:39.2]} 54... Rf8+ {[%clk
0:00:30.8]} 55. Kg7 {[%clk 0:01:38.2]} 55... Rf3 {[%clk 0:00:28.3]} 56. g4
{[%clk 0:01:37.1]} 56... Rf4 {[%clk 0:00:26.3]} 57. g5 {[%clk 0:01:36.1]} 57...
Rg4 {[%clk 0:00:25.2]} 58. Kf6 {[%clk 0:01:33.6]} 58... Rf4+ {[%clk 0:00:24]}
59. Kg7 {[%clk 0:01:32.7]} 59... Rg4 {[%clk 0:00:22.3]} 60. Kh7 {[%clk
0:01:27.2]} 60... Rxg5 {[%clk 0:00:20.6]} 61. g7 {[%clk 0:01:26.3]} 61... d4
{[%clk 0:00:19.8]} 62. g8=Q {[%clk 0:01:23.2]} 62... Rxg8 {[%clk 0:00:18.8]} 63.
Kxg8 {[%clk 0:01:22.4]} 63... Kd5 {[%clk 0:00:17.9]} 64. Kf7 {[%clk 0:01:21.1]}
64... Kc4 {[%clk 0:00:15.7]} 65. Ke7 {[%clk 0:01:19.4]} 65... Kd3 {[%clk
0:00:14.2]} 66. Rh2 {[%clk 0:01:18]} 66... Kc4 {[%clk 0:00:12]} 67. Kd6 {[%clk
0:01:16.2]} 67... b5 {[%clk 0:00:10.6]} 68. Kc6 {[%clk 0:01:12.8]} 68... a5
{[%clk 0:00:09.6]} 69. Kb6 {[%clk 0:01:12]} 69... b4 {[%clk 0:00:08.6]} 70. Kxa5
{[%clk 0:01:09.6]} 70... bxa3 {[%clk 0:00:07.8]} 71. bxa3 {[%clk 0:01:07.7]}
71... Kc3 {[%clk 0:00:07.2]} 72. Kb5 {[%clk 0:01:06.3]} 72... d3 {[%clk
0:00:06.3]} 73. a4 {[%clk 0:01:05.8]} 73... d2 {[%clk 0:00:05.5]} 74. Rxd2
{[%clk 0:01:05]} 74... Kxd2 {[%clk 0:00:04.5]} 75. a5 {[%clk 0:01:04.4]} 1-0

[Event "Live Chess"]
[Site "Chess.com"]
[Date "2024.06.01"]
[Round "-"]
[White "crais6"]
[Black "booktrunk"]
[Result "1-0"]
[WhiteElo "1630"]
[BlackElo "1420"]
[TimeControl "300"]
[EndTime "14:41:33 PDT"]
[Termination "crais6 won by resignation"]

1. e4 {[%clk 0:04:53.2]} 1... b6 {[%clk 0:04:59.9]} 2. d4 {[%clk 0:04:51]} 2...
Bb7 {[%clk 0:04:59.5]} 3. Nc3 {[%clk 0:04:48.6]} 3... e6 {[%clk 0:04:47.7]} 4.
Nf3 {[%clk 0:04:45.5]} 4... h6 {[%clk 0:04:46.1]} 5. Bd3 {[%clk 0:04:38.9]} 5...
Bb4 {[%clk 0:04:23.1]} 6. O-O {[%clk 0:04:35.6]} 6... Nf6 {[%clk 0:04:21.6]} 7.
a3 {[%clk 0:04:32]} 7... Bxc3 {[%clk 0:04:19.8]} 8. bxc3 {[%clk 0:04:29.5]} 8...
Nxe4 {[%clk 0:04:18.3]} 9. Re1 {[%clk 0:04:27.3]} 9... Nxc3 {[%clk 0:04:13.8]}
10. Qd2 {[%clk 0:04:21.1]} 10... Nd5 {[%clk 0:04:11.3]} 11. c4 {[%clk
0:04:18.4]} 11... Nf6 {[%clk 0:04:09.2]} 12. Bb2 {[%clk 0:04:06.3]} 12... Bxf3
{[%clk 0:04:06.5]} 13. gxf3 {[%clk 0:04:03.7]} 13... O-O {[%clk 0:04:05.1]} 14.
Qf4 {[%clk 0:03:57]} 14... d6 {[%clk 0:03:57.8]} 15. Kh1 {[%clk 0:03:53.4]}
15... Nbd7 {[%clk 0:03:53.6]} 16. Rg1 {[%clk 0:03:51.7]} 16... Nh5 {[%clk
0:03:45.3]} 17. Qxh6 {[%clk 0:03:44.9]} 17... Ndf6 {[%clk 0:03:40.6]} 18. d5
{[%clk 0:03:36.2]} 18... e5 {[%clk 0:03:38.8]} 19. Rg2 {[%clk 0:03:03.6]} 19...
Qd7 {[%clk 0:03:37.2]} 20. Rag1 {[%clk 0:03:01.2]} 20... g6 {[%clk 0:03:25.1]}
1-0

[Event "Live Chess"]
[Site "Chess.com"]
[Date "2024.06.01"]
[Round "-"]
[White "Crowded_House"]
[Black "Mikhail_Golubev"]
[Result "0-1"]
[WhiteElo "1732"]
[BlackElo "2602"]
[TimeControl "300"]
[EndTime "14:41:55 PDT"]
[Termination "Mikhail_Golubev won by resignation"]

1. d4 {[%clk 0:04:57.6]} 1... Nf6 {[%clk 0:04:58.2]} 2. Bg5 {[%clk 0:04:56.9]}
2... Ne4 {[%clk 0:04:50.8]} 3. Bh4 {[%clk 0:04:56]} 3... d5 {[%clk 0:04:43.7]}
4. Nd2 {[%clk 0:04:54.8]} 4... Nd6 {[%clk 0:04:41.7]} 5. c3 {[%clk 0:04:52.6]}
5... g6 {[%clk 0:04:32.5]} 6. e3 {[%clk 0:04:49.6]} 6... Bg7 {[%clk 0:04:26.5]}
7. Bd3 {[%clk 0:04:48.1]} 7... Bf5 {[%clk 0:04:11.1]} 8. Qc2 {[%clk 0:04:43.1]}
8... Bxd3 {[%clk 0:04:08.8]} 9. Qxd3 {[%clk 0:04:42]} 9... Nd7 {[%clk
0:03:59.5]} 10. Ngf3 {[%clk 0:04:40.9]} 10... O-O {[%clk 0:03:52.7]} 11. O-O
{[%clk 0:04:39.1]} 11... Nf5 {[%clk 0:03:50.5]} 12. Bg3 {[%clk 0:04:36.5]} 12...
Nxg3 {[%clk 0:03:39.5]} 13. hxg3 {[%clk 0:04:36.4]} 13... e5 {[%clk 0:03:37.5]}
14. dxe5 {[%clk 0:04:35]} 14... Nxe5 {[%clk 0:03:36.9]} 15. Nxe5 {[%clk
0:04:34]} 15... Bxe5 {[%clk 0:03:36.6]} 16. Nf3 {[%clk 0:04:33.4]} 16... Bg7
{[%clk 0:03:32.6]} 17. Rfd1 {[%clk 0:04:32.3]} 17... c6 {[%clk 0:03:31.9]} 18.
Rd2 {[%clk 0:04:26.6]} 18... Qe7 {[%clk 0:03:25]} 19. Rad1 {[%clk 0:04:17.4]}
19... Rfe8 {[%clk 0:03:23.5]} 20. b3 {[%clk 0:04:10.5]} 20... a5 {[%clk
0:03:13.2]} 21. c4 {[%clk 0:04:09.3]} 21... dxc4 {[%clk 0:03:06.6]} 22. Qxc4
{[%clk 0:04:07.7]} 22... Red8 {[%clk 0:02:45]} 23. Qc2 {[%clk 0:03:58.8]} 23...
Bf6 {[%clk 0:02:20.7]} 24. Kf1 {[%clk 0:03:56.7]} 24... Rxd2 {[%clk 0:02:17.4]}
25. Rxd2 {[%clk 0:03:55.4]} 25... a4 {[%clk 0:02:15.9]} 26. bxa4 {[%clk
0:03:46.9]} 26... Qb4 {[%clk 0:02:12.1]} 27. Qb3 {[%clk 0:03:37.3]} 27... Rxa4
{[%clk 0:02:03.6]} 28. Qxb4 {[%clk 0:03:31.6]} 28... Rxb4 {[%clk 0:02:02.4]} 29.
Ke2 {[%clk 0:03:21.9]} 29... c5 {[%clk 0:01:59.2]} 30. Rc2 {[%clk 0:03:14.7]}
30... c4 {[%clk 0:01:52.3]} 31. Nd4 {[%clk 0:03:06.5]} 31... Bxd4 {[%clk
0:01:45.6]} 32. exd4 {[%clk 0:03:05.2]} 32... b5 {[%clk 0:01:44.8]} 33. Kd2
{[%clk 0:02:57]} 33... Kf8 {[%clk 0:01:23.8]} 34. Kc3 {[%clk 0:02:55.7]} 34...
Rb1 {[%clk 0:01:13.1]} 35. Rb2 {[%clk 0:02:44.8]} 35... Rxb2 {[%clk 0:01:03]}
36. Kxb2 {[%clk 0:02:43.8]} 36... Ke7 {[%clk 0:00:59.1]} 37. Kc3 {[%clk
0:02:42.8]} 37... Kd6 {[%clk 0:00:57.9]} 38. a4 {[%clk 0:02:41.7]} 38... bxa4
{[%clk 0:00:55.9]} 39. Kxc4 {[%clk 0:02:41]} 39... a3 {[%clk 0:00:47.5]} 40. Kb3
{[%clk 0:02:39.9]} 40... Kd5 {[%clk 0:00:46.9]} 41. Kxa3 {[%clk 0:02:39.6]}
41... Kxd4 {[%clk 0:00:46.6]} 42. Kb3 {[%clk 0:02:39.2]} 42... Kd3 {[%clk
0:00:46.2]} 43. Kb4 {[%clk 0:02:36.9]} 43... Ke2 {[%clk 0:00:45.1]} 44. Kc5
{[%clk 0:02:35.7]} 44... Kxf2 {[%clk 0:00:44.3]} 45. Kd5 {[%clk 0:02:34.6]}
45... Kxg3 {[%clk 0:00:43.5]} 46. Ke5 {[%clk 0:02:33.9]} 46... Kxg2 {[%clk
0:00:42.6]} 47. Kf6 {[%clk 0:02:33.1]} 47... h5 {[%clk 0:00:42]} 48. Kxf7 {[%clk
0:02:32.4]} 48... h4 {[%clk 0:00:40.5]} 49. Kxg6 {[%clk 0:02:32.3]} 49... h3
{[%clk 0:00:40]} 50. Kf5 {[%clk 0:02:32.2]} 50... h2 {[%clk 0:00:39.7]} 51. Ke4
{[%clk 0:02:31.9]} 51... h1=Q {[%clk 0:00:39.2]} 52. Ke5 {[%clk 0:02:31.8]}
52... Qf1 {[%clk 0:00:37.9]} 53. Kd4 {[%clk 0:02:30.9]} 53... Qe2 {[%clk
0:00:36.3]} 54. Kd5 {[%clk 0:02:30.8]} 54... Qe3 {[%clk 0:00:35.4]} 55. Kc6
{[%clk 0:02:30]} 55... Qd4 {[%clk 0:00:34.7]} 56. Kc7 {[%clk 0:02:28.7]} 56...
Qd5 {[%clk 0:00:33.6]} 57. Kc8 {[%clk 0:02:26.8]} 57... Qd6 {[%clk 0:00:31.8]}
58. Kb7 {[%clk 0:02:24.6]} 58... Qc5 {[%clk 0:00:31.3]} 59. Kb8 {[%clk 0:02:23]}
59... Qe7 {[%clk 0:00:29.7]} 60. Kc8 {[%clk 0:02:21.6]} 60... Kf3 {[%clk
0:00:29.3]} 61. Kb8 {[%clk 0:02:21.5]} 61... Ke4 {[%clk 0:00:29.1]} 0-1

[Event "Live Chess"]
[Site "Chess.com"]
[Date "2024.06.01"]
[Round "-"]
[White "Zhevzh1k7"]
[Black "Dhaydon19"]
[Result "0-1"]
[WhiteElo "1104"]
[BlackElo "2683"]
[TimeControl "300"]
[EndTime "14:42:05 PDT"]
[Termination "Dhaydon19 won by checkmate"]

1. e4 {[%clk 0:04:56.7]} 1... c6 {[%clk 0:04:59.5]} 2. d4 {[%clk 0:04:54.6]}
2... d5 {[%clk 0:04:59.2]} 3. f3 {[%clk 0:04:53.6]} 3... e5 {[%clk 0:04:52.9]}
4. dxe5 {[%clk 0:04:51.4]} 4... dxe4 {[%clk 0:04:51.8]} 5. Qxd8+ {[%clk
0:04:49]} 5... Kxd8 {[%clk 0:04:51.2]} 6. fxe4 {[%clk 0:04:48.5]} 6... Nd7
{[%clk 0:04:50]} 7. Nf3 {[%clk 0:04:46.3]} 7... h6 {[%clk 0:04:49]} 8. Bc4
{[%clk 0:04:44.3]} 8... Ke8 {[%clk 0:04:46.6]} 9. Nc3 {[%clk 0:04:42.7]} 9...
Ne7 {[%clk 0:04:44.1]} 10. O-O {[%clk 0:04:41.4]} 10... Nb6 {[%clk 0:04:42.7]}
11. Bb3 {[%clk 0:04:39.6]} 11... Ng6 {[%clk 0:04:40.3]} 12. Nd4 {[%clk
0:04:33.7]} 12... Nxe5 {[%clk 0:04:36.5]} 13. Bf4 {[%clk 0:04:29.8]} 13... Nbd7
{[%clk 0:04:35.5]} 14. Bxe5 {[%clk 0:04:22.6]} 14... Nxe5 {[%clk 0:04:33.4]} 15.
Nf3 {[%clk 0:04:17.7]} 15... Nxf3+ {[%clk 0:04:29.3]} 16. Rxf3 {[%clk
0:04:16.5]} 16... f6 {[%clk 0:04:27.5]} 17. Rd1 {[%clk 0:04:14.9]} 17... Bc5+
{[%clk 0:04:24.7]} 18. Kh1 {[%clk 0:04:13]} 18... Bg4 {[%clk 0:04:22.5]} 19. Rg3
{[%clk 0:04:02.5]} 19... Bxd1 {[%clk 0:04:19.8]} 20. Nxd1 {[%clk 0:04:02.3]}
20... Rd8 {[%clk 0:04:17.8]} 21. c3 {[%clk 0:03:54.6]} 21... g5 {[%clk
0:04:15.7]} 22. h3 {[%clk 0:03:47.4]} 22... Rd2 {[%clk 0:04:10.5]} 23. Kh2
{[%clk 0:03:44.4]} 23... Bd6 {[%clk 0:04:09]} 24. Ne3 {[%clk 0:03:32.2]} 24...
Rd3 {[%clk 0:04:04.2]} 25. Nf5 {[%clk 0:03:27.9]} 25... Bxg3+ {[%clk 0:04:01.6]}
26. Nxg3 {[%clk 0:03:27.8]} 26... Rxg3 {[%clk 0:04:01]} 27. Kxg3 {[%clk
0:03:26.7]} 27... Ke7 {[%clk 0:04:00.3]} 28. Kg4 {[%clk 0:03:25]} 28... Kf8
{[%clk 0:03:59.3]} 29. Kf5 {[%clk 0:03:23.9]} 29... Kg7 {[%clk 0:03:58.9]} 30.
g4 {[%clk 0:03:22]} 30... Re8 {[%clk 0:03:57.7]} 31. Be6 {[%clk 0:03:18.2]}
31... Rd8 {[%clk 0:03:55.8]} 32. Bc4 {[%clk 0:03:13.3]} 32... Rd2 {[%clk
0:03:54.1]} 33. b4 {[%clk 0:03:10.8]} 33... Rc2 {[%clk 0:03:53.3]} 34. Bb3
{[%clk 0:03:02]} 34... Rxc3 {[%clk 0:03:52.3]} 35. Ba4 {[%clk 0:02:57.6]} 35...
Rxh3 {[%clk 0:03:50.4]} 36. b5 {[%clk 0:02:55.6]} 36... cxb5 {[%clk 0:03:48.9]}
37. Bxb5 {[%clk 0:02:54.7]} 37... Rc3 {[%clk 0:03:47.5]} 38. a4 {[%clk 0:02:54]}
38... Rc5+ {[%clk 0:03:47]} 39. Ke6 {[%clk 0:02:50.7]} 39... Re5+ {[%clk
0:03:43.6]} 40. Kd6 {[%clk 0:02:48.9]} 40... Rxe4 {[%clk 0:03:43.3]} 41. Kc7
{[%clk 0:02:48]} 41... a6 {[%clk 0:03:41.5]} 42. Kxb7 {[%clk 0:02:45.6]} 42...
axb5 {[%clk 0:03:40.2]} 43. axb5 {[%clk 0:02:45.3]} 43... Rxg4 {[%clk
0:03:39.8]} 44. Kb6 {[%clk 0:02:44.3]} 44... Rb4 {[%clk 0:03:39.3]} 45. Ka6
{[%clk 0:02:43.2]} 45... Rxb5 {[%clk 0:03:39]} 46. Kxb5 {[%clk 0:02:42.2]} 46...
f5 {[%clk 0:03:38.7]} 47. Kc4 {[%clk 0:02:42]} 47... h5 {[%clk 0:03:38.3]} 48.
Kd3 {[%clk 0:02:41.9]} 48... h4 {[%clk 0:03:38]} 49. Ke2 {[%clk 0:02:41.8]}
49... h3 {[%clk 0:03:37.6]} 50. Kf1 {[%clk 0:02:41.7]} 50... g4 {[%clk
0:03:37.3]} 51. Kg1 {[%clk 0:02:41.6]} 51... Kf6 {[%clk 0:03:37]} 52. Kh1 {[%clk
0:02:41]} 52... Kg5 {[%clk 0:03:36.7]} 53. Kh2 {[%clk 0:02:40.9]} 53... Kh4
{[%clk 0:03:36.4]} 54. Kh1 {[%clk 0:02:40.8]} 54... f4 {[%clk 0:03:35.5]} 55.
Kh2 {[%clk 0:02:40.7]} 55... f3 {[%clk 0:03:34.3]} 56. Kh1 {[%clk 0:02:40.6]}
56... g3 {[%clk 0:03:33.9]} 57. Kg1 {[%clk 0:02:39.8]} 57... Kg4 {[%clk
0:03:31.2]} 58. Kh1 {[%clk 0:02:39.7]} 58... Kf4 {[%clk 0:03:30.9]} 59. Kg1
{[%clk 0:02:39.1]} 59... Ke3 {[%clk 0:03:30.5]} 60. Kh1 {[%clk 0:02:38.5]} 60...
Ke2 {[%clk 0:03:29.1]} 61. Kg1 {[%clk 0:02:37.6]} 61... f2+ {[%clk 0:03:28.8]}
62. Kh1 {[%clk 0:02:37.5]} 62... f1=Q# {[%clk 0:03:28.4]} 0-1

[Event "Live Chess"]
[Site "Chess.com"]
[Date "2024.06.01"]
[Round "-"]
[White "degringolade64"]
[Black "ogpin"]
[Result "0-1"]
[WhiteElo "2136"]
[BlackElo "2204"]
[TimeControl "300"]
[EndTime "14:42:11 PDT"]
[Termination "ogpin won by resignation"]

1. e4 {[%clk 0:04:54.6]} 1... a5 {[%clk 0:04:59.9]} 2. d4 {[%clk 0:04:50.1]}
2... Ra6 {[%clk 0:04:59.8]} 3. Bxa6 {[%clk 0:04:48.2]} 3... Nxa6 {[%clk
0:04:59.7]} 4. Nf3 {[%clk 0:04:45.3]} 4... b6 {[%clk 0:04:59.2]} 5. O-O {[%clk
0:04:38]} 5... Bb7 {[%clk 0:04:58.6]} 6. Re1 {[%clk 0:04:36.6]} 6... e6 {[%clk
0:04:56.2]} 7. a3 {[%clk 0:04:32.2]} 7... Qa8 {[%clk 0:04:55.1]} 8. Qd3 {[%clk
0:04:28.1]} 8... c5 {[%clk 0:04:48.1]} 9. c3 {[%clk 0:04:26.6]} 9... g6 {[%clk
0:04:25]} 10. Bf4 {[%clk 0:04:14.9]} 10... Bg7 {[%clk 0:04:23.9]} 11. Bd6 {[%clk
0:04:12.3]} 11... Nf6 {[%clk 0:04:21.1]} 12. Nbd2 {[%clk 0:04:08.5]} 12... Bf8
{[%clk 0:03:57.8]} 13. Nc4 {[%clk 0:03:46]} 13... Bxe4 {[%clk 0:03:52.1]} 14.
Rxe4 {[%clk 0:03:42]} 14... Qxe4 {[%clk 0:03:46.7]} 15. Qxe4 {[%clk 0:03:38.9]}
15... Nxe4 {[%clk 0:03:46.6]} 16. Bxf8 {[%clk 0:03:37.8]} 16... Kxf8 {[%clk
0:03:43.6]} 17. Nxb6 {[%clk 0:03:36.1]} 17... Kg7 {[%clk 0:03:37.7]} 18. Nxd7
{[%clk 0:03:32.6]} 18... cxd4 {[%clk 0:03:32.1]} 19. cxd4 {[%clk 0:03:31.1]}
19... Rd8 {[%clk 0:03:26.1]} 20. Nde5 {[%clk 0:03:28.2]} 20... Rb8 {[%clk
0:03:20.9]} 21. b4 {[%clk 0:03:00.7]} 21... axb4 {[%clk 0:03:17.7]} 22. axb4
{[%clk 0:02:59.9]} 22... Nxb4 {[%clk 0:03:10.9]} 23. Ra7 {[%clk 0:02:54.7]}
23... Nd6 {[%clk 0:03:06.1]} 24. h4 {[%clk 0:02:51.7]} 24... Rb7 {[%clk
0:02:57.8]} 25. Ra8 {[%clk 0:02:28.9]} 25... Nd5 {[%clk 0:02:48.3]} 26. Rd8
{[%clk 0:02:24.5]} 26... Nf5 {[%clk 0:02:43.3]} 27. Ng5 {[%clk 0:02:22.1]} 27...
Nxd4 {[%clk 0:02:34.4]} 28. Nexf7 {[%clk 0:02:15.9]} 28... Rxf7 {[%clk
0:02:34.3]} 29. Nxf7 {[%clk 0:02:06.7]} 29... Kxf7 {[%clk 0:02:34.2]} 30. Kf1
{[%clk 0:02:01.6]} 30... Nf5 {[%clk 0:02:29.4]} 31. g3 {[%clk 0:01:59.3]} 31...
Nf6 {[%clk 0:02:24.6]} 32. Ke2 {[%clk 0:01:56.4]} 32... Ne7 {[%clk 0:02:10.9]}
33. Ra8 {[%clk 0:01:51.9]} 33... Nfd5 {[%clk 0:02:06.6]} 34. g4 {[%clk
0:01:45.3]} 34... h5 {[%clk 0:01:45]} 35. f3 {[%clk 0:01:41.1]} 35... Nf4+
{[%clk 0:01:38.6]} 36. Kf2 {[%clk 0:01:38]} 36... Kf6 {[%clk 0:01:31]} 37. g5+
{[%clk 0:01:24.3]} 37... Ke5 {[%clk 0:01:30.2]} 38. Ra5+ {[%clk 0:01:17.3]}
38... Nfd5 {[%clk 0:01:29.1]} 39. Ra4 {[%clk 0:01:00.9]} 39... Nf5 {[%clk
0:01:18.4]} 40. Re4+ {[%clk 0:00:58.9]} 40... Kd6 {[%clk 0:01:17.9]} 41. Kg2
{[%clk 0:00:54.8]} 41... e5 {[%clk 0:01:12]} 42. Kf2 {[%clk 0:00:52.1]} 42...
Nf4 {[%clk 0:01:09.9]} 43. Ra4 {[%clk 0:00:46.8]} 43... Nxh4 {[%clk 0:01:09.1]}
44. Ra6+ {[%clk 0:00:45.7]} 44... Kd5 {[%clk 0:01:08]} 45. Ra5+ {[%clk
0:00:43.5]} 45... Ke6 {[%clk 0:01:05.7]} 46. Ra6+ {[%clk 0:00:42.4]} 46... Kf5
{[%clk 0:01:05]} 47. Rf6+ {[%clk 0:00:40.8]} 47... Kxg5 {[%clk 0:01:04.4]} 0-1

[Event "Live Chess"]
[Site "Chess.com"]
[Date "2024.06.01"]
[Round "-"]
[White "PughmanChess"]
[Black "WorcesterYork"]
[Result "0-1"]
[WhiteElo "1387"]
[BlackElo "2477"]
[TimeControl "300"]
[EndTime "14:42:11 PDT"]
[Termination "WorcesterYork won by resignation"]

1. e4 {[%clk 0:04:55.4]} 1... c5 {[%clk 0:04:59.3]} 2. Nc3 {[%clk 0:04:53.2]}
2... Nc6 {[%clk 0:04:57.9]} 3. f4 {[%clk 0:04:52.8]} 3... e6 {[%clk 0:04:56.6]}
4. Nf3 {[%clk 0:04:52.3]} 4... d5 {[%clk 0:04:56.1]} 5. Bb5 {[%clk 0:04:51.1]}
5... Ne7 {[%clk 0:04:55.3]} 6. e5 {[%clk 0:04:48.9]} 6... Bd7 {[%clk 0:04:53.4]}
7. O-O {[%clk 0:04:46.9]} 7... Nf5 {[%clk 0:04:53]} 8. Ne2 {[%clk 0:04:35.7]}
8... Be7 {[%clk 0:04:50.4]} 9. c3 {[%clk 0:04:34.3]} 9... c4 {[%clk 0:04:48.4]}
10. d4 {[%clk 0:04:27.6]} 10... cxd3 {[%clk 0:04:48.3]} 11. Qxd3 {[%clk
0:04:26.5]} 11... Qb6+ {[%clk 0:04:44.9]} 12. Kh1 {[%clk 0:04:23.8]} 12... h5
{[%clk 0:04:43.4]} 13. Bxc6 {[%clk 0:04:15.8]} 13... bxc6 {[%clk 0:04:41.6]} 14.
Nfd4 {[%clk 0:04:12.8]} 14... Nxd4 {[%clk 0:04:38.6]} 15. cxd4 {[%clk
0:04:10.4]} 15... c5 {[%clk 0:04:37.9]} 16. Be3 {[%clk 0:04:04.4]} 16... Bb5
{[%clk 0:04:37.1]} 17. Qd2 {[%clk 0:04:00.5]} 17... Bxe2 {[%clk 0:04:35.2]} 18.
Qxe2 {[%clk 0:03:59.6]} 18... cxd4 {[%clk 0:04:34.9]} 19. Bf2 {[%clk 0:03:56.6]}
19... Rc8 {[%clk 0:04:30.7]} 20. a4 {[%clk 0:03:53.7]} 20... Qb4 {[%clk
0:04:25]} 21. Qb5+ {[%clk 0:03:51.4]} 21... Qxb5 {[%clk 0:04:24.1]} 22. axb5
{[%clk 0:03:51]} 22... Bc5 {[%clk 0:04:23.1]} 23. b4 {[%clk 0:03:47.6]} 23...
Bb6 {[%clk 0:04:21.4]} 24. Rfc1 {[%clk 0:03:42.9]} 24... Kd7 {[%clk 0:04:20]}
25. Rd1 {[%clk 0:03:40.4]} 25... Rc4 {[%clk 0:04:18.8]} 26. Rac1 {[%clk
0:03:38.8]} 26... Rhc8 {[%clk 0:04:16]} 27. Rb1 {[%clk 0:03:33.1]} 27... g6
{[%clk 0:04:07.6]} 28. h4 {[%clk 0:03:31.4]} 28... R8c7 {[%clk 0:04:01.6]} 29.
Kh2 {[%clk 0:03:30.4]} 29... d3 {[%clk 0:03:58.8]} 30. Bxb6 {[%clk 0:03:26.2]}
30... axb6 {[%clk 0:03:58.7]} 31. Rxd3 {[%clk 0:03:24.2]} 31... Rxf4 {[%clk
0:03:57.7]} 32. Rf3 {[%clk 0:03:18.1]} 32... Rxf3 {[%clk 0:03:55]} 33. gxf3
{[%clk 0:03:17.6]} 33... Rc4 {[%clk 0:03:54]} 34. Kg3 {[%clk 0:03:14.9]} 34...
Ke7 {[%clk 0:03:53]} 35. Rb3 {[%clk 0:03:04.5]} 35... f6 {[%clk 0:03:52.1]} 36.
exf6+ {[%clk 0:03:03.2]} 36... Kxf6 {[%clk 0:03:52]} 37. f4 {[%clk 0:02:59.6]}
37... Kf5 {[%clk 0:03:50.5]} 38. Kf3 {[%clk 0:02:58.6]} 38... Rxf4+ {[%clk
0:03:49.5]} 39. Kg3 {[%clk 0:02:57.9]} 39... Rg4+ {[%clk 0:03:48.7]} 40. Kh3
{[%clk 0:02:56.7]} 40... e5 {[%clk 0:03:47.5]} 41. Rf3+ {[%clk 0:02:54.6]} 41...
Rf4 {[%clk 0:03:46.8]} 42. Rg3 {[%clk 0:02:53.8]} 42... Rxb4 {[%clk 0:03:45.3]}
43. Rxg6 {[%clk 0:02:52.4]} 43... Kxg6 {[%clk 0:03:43.7]} 0-1